bitfinex-derivatives/quotes_BTCF0:USTF0_20241006
["timestamp","ask_amount","ask_price","bid_price","bid_amount"]
[1728258020093,0.002,62866.0,62865.0,0.245631]
[1728258021094,0.002,62866.0,62865.0,0.065631]
[1728258021290,0.002,62866.0,62865.0,0.245631]
[1728258022490,0.002,62866.0,62865.0,0.606431]
[1728258027189,0.0327233,62866.0,62865.0,0.606431]
[1728258027503,0.002,62866.0,62865.0,0.606431]
[1728258027693,0.03272406,62866.0,62865.0,0.606431]
[1728258027894,0.03272332,62866.0,62865.0,0.606431]
[1728258030398,0.0327239,62866.0,62865.0,0.606431]
[1728258032392,0.002,62866.0,62865.0,0.606431]
[1728258032793,0.03272317,62866.0,62865.0,0.606431]
[1728258032997,0.002,62866.0,62865.0,0.606431]
[1728258035701,0.03272291,62866.0,62865.0,0.606431]
[1728258036806,0.002,62866.0,62865.0,0.606431]
[1728258039703,0.002,62866.0,62865.0,0.426431]
[1728258041605,0.002,62866.0,62865.0,0.546431]
[1728258044498,0.002,62866.0,62865.0,0.606431]
[1728258047003,0.06563,62866.0,62865.0,0.3628]
[1728258047306,0.09635305,62866.0,62865.0,0.3628]
[1728258049409,0.09635305,62866.0,62865.0,0.3129]
[1728258049619,0.063634,62862.0,62861.0,0.37230307]
[1728258049912,0.09435705,62862.0,62854.0,0.1911]
[1728258050114,0.0004,62857.0,62852.0,0.00608631]
[1728258050415,0.0004,62857.0,62856.0,0.24364]
[1728258050812,0.0004,62857.0,62856.0,0.60444]
[1728258053209,0.0004,62857.0,62856.0,0.60644]
[1728258057315,0.0004,62857.0,62856.0,0.42644]
[1728258057710,0.0004,62857.0,62856.0,0.60644]
[1728258060211,0.0004,62857.0,62856.0,0.42644]
[1728258060420,0.0004,62857.0,62856.0,0.60644]
[1728258061823,0.0004,62857.0,62856.0,0.42644]
[1728258063614,0.0004,62857.0,62856.0,0.60644]
[1728258063920,0.0004,62857.0,62856.0,0.24564]
[1728258064916,0.0004,62857.0,62856.0,0.06564]
[1728258065126,0.0004,62857.0,62856.0,0.24564]
[1728258066418,0.0004,62857.0,62856.0,0.18564]
[1728258066607,0.0004,62857.0,62856.0,0.06564]
[1728258067910,0.0004,62857.0,62856.0,0.42644]
[1728258072027,0.0037,62863.0,62856.0,0.42644]
[1728258072329,0.0655,62865.0,62864.0,0.063632]
[1728258072536,0.09622695,62865.0,62864.0,0.063632]
[1728258073823,0.0655,62865.0,62864.0,0.063632]
[1728258074329,0.0685,62865.0,62864.0,0.064632]
[1728258074628,0.0356,62865.0,62864.0,0.064632]
[1728258075132,0.0356,62865.0,62864.0,0.065632]
[1728258075523,0.003,62865.0,62864.0,0.426432]
[1728258075830,0.0363,62873.0,62872.0,0.063624]
[1728258075831,0.0037,62873.0,62872.0,0.063624]
[1728258076025,0.0315,62875.0,62874.0,0.063622]
[1728258076232,0.0315,62875.0,62874.0,0.183622]
[1728258077731,0.0345,62875.0,62874.0,0.184622]
[1728258078826,0.0345,62875.0,62874.0,0.185622]
[1728258082830,0.0345,62875.0,62874.0,0.19755254]
[1728258083227,0.003,62875.0,62874.0,0.19755254]
[1728258093455,0.003,62875.0,62874.0,0.01393054]
[1728258093456,0.066621,62875.0,62874.0,0.01393054]
[1728258097339,0.0973526,62875.0,62874.0,0.01393054]
[1728258097540,0.0337316,62875.0,62874.0,0.07755254]
[1728258097840,0.003,62875.0,62874.0,0.07755254]
[1728258100345,0.03380389,62875.0,62874.0,0.07755254]
[1728258100643,0.003,62875.0,62874.0,0.07755254]
[1728258103944,0.03397099,62875.0,62874.0,0.07755254]
[1728258105945,0.03397099,62875.0,62874.0,0.01393054]
[1728258106249,0.03397099,62875.0,62867.0,0.0037]
[1728258106250,1.33370038,62875.0,62867.0,0.0037]
[1728258106441,0.183628,62869.0,62865.0,0.063631]
[1728258106641,0.09377099,62868.0,62865.0,0.063631]
[1728258106842,0.12,62866.0,62864.0,0.3608]
[1728258107037,0.03097099,62865.0,62864.0,0.3608]
[1728258107238,0.09460199,62865.0,62864.0,0.3608]
[1728258107843,0.09435748,62865.0,62864.0,0.3608]
[1728258109336,0.09535748,62865.0,62864.0,0.3618]
[1728258110146,0.09535748,62865.0,62864.0,0.001]
[1728258111550,0.27535748,62865.0,62864.0,0.001]
[1728258112151,0.244631,62865.0,62864.0,0.001]
[1728258112356,0.75255897,62865.0,62864.0,0.001]
[1728258112842,1.35255897,62865.0,62864.0,0.001]
[1728258113342,1.321831,62865.0,62864.0,0.001]
[1728258115253,0.063635,62861.0,62860.0,0.0037]
[1728258115453,0.063637,62860.0,62858.0,0.063638]
[1728258115658,0.063638,62859.0,62858.0,0.063638]
[1728258116150,0.063639,62857.0,62852.0,0.00608631]
[1728258116459,0.063639,62857.0,62856.0,0.06364]
[1728258117153,0.5426,62861.0,62852.0,0.00238631]
[1728258117354,0.5426,62861.0,62854.0,0.063642]
[1728258117355,0.063641,62856.0,62854.0,0.063642]
[1728258118752,0.063641,62856.0,62854.0,0.067642]
[1728258119255,0.064641,62856.0,62854.0,0.067642]
[1728258119551,0.063641,62855.0,62854.0,0.067642]
[1728258120644,0.001,62856.0,62854.0,0.004]
[1728258120851,0.001,62856.0,62855.0,0.243641]
[1728258121637,0.3608,62857.0,62855.0,0.243641]
[1728258122248,0.3608,62857.0,62856.0,0.06364]
[1728258122451,0.063635,62862.0,62861.0,0.063634]
[1728258122754,0.063635,62862.0,62861.0,0.243634]
[1728258123748,0.063635,62862.0,62861.0,0.063634]
[1728258125654,0.064635,62862.0,62861.0,0.063634]
[1728258125856,0.064635,62862.0,62861.0,0.064634]
[1728258126958,0.425435,62862.0,62861.0,0.064634]
[1728258127154,0.425435,62862.0,62861.0,0.001]
[1728258128661,0.425435,62862.0,62861.0,0.01252839]
[1728258128847,0.425435,62862.0,62861.0,0.001]
[1728258129851,0.064635,62862.0,62861.0,0.001]
[1728258130258,0.064635,62862.0,62861.0,0.064635]
[1728258130562,0.001,62862.0,62861.0,0.184635]
[1728258138155,0.15715408,62884.0,62861.0,0.121]
[1728258138355,0.0037,62878.0,62871.0,0.12]
[1728258138557,0.063616,62881.0,62875.0,0.063621]
[1728258138771,0.13333544,62880.0,62879.0,0.12]
[1728258139068,0.09438931,62880.0,62879.0,0.12]
[1728258139867,0.09538931,62880.0,62879.0,0.121]
[1728258140269,0.064617,62880.0,62879.0,0.121]
[1728258140570,0.064617,62880.0,62879.0,0.064617]
[1728258140571,0.03189455,62880.0,62879.0,0.064617]
[1728258141155,0.001,62880.0,62879.0,0.065617]
[1728258145354,0.001,62880.0,62879.0,0.07738677]
[1728258153469,0.001,62880.0,62879.0,0.25738677]
[1728258160376,0.001,62880.0,62879.0,0.19738677]
[1728258169373,0.03224482,62880.0,62879.0,0.19738677]
[1728258169873,0.001,62880.0,62879.0,0.19738677]
[1728258175178,0.0023859,62887.0,62886.0,0.06361]
[1728258175378,0.0023859,62887.0,62886.0,0.18361]
[1728258176582,0.0023859,62887.0,62886.0,0.18461]
[1728258177186,0.0037,62895.0,62886.0,0.54641]
[1728258177389,0.0037,62895.0,62890.0,0.12]
[1728258177595,0.0352,62899.0,62896.0,0.063599]
[1728258177784,0.03182881,62898.0,62896.0,0.063599]
[1728258177983,0.0318332,62897.0,62891.0,0.0037]
[1728258178190,0.0315,62899.0,62898.0,0.063598]
[1728258178387,0.06340954,62899.0,62898.0,0.183598]
[1728258179084,0.0315,62899.0,62898.0,0.183598]
[1728258179582,0.0315,62899.0,62898.0,0.184598]
[1728258180884,0.0315,62899.0,62898.0,0.185598]
[1728258181690,0.0037,62907.0,62898.0,1.19896]
[1728258181992,0.3213,62938.0,62907.0,0.063589]
[1728258181993,0.063584,62912.0,62907.0,0.063589]
[1728258182180,0.063584,62912.0,62909.0,0.12]
[1728258182585,0.0932,62916.0,62909.0,0.12]
[1728258182785,0.03225586,62915.0,62912.0,0.12]
[1728258182985,0.063583,62913.0,62912.0,0.12]
[1728258183193,0.09583886,62913.0,62912.0,0.12]
[1728258183386,0.063583,62913.0,62912.0,0.12]
[1728258184384,0.063583,62913.0,62912.0,0.121]
[1728258184895,0.063583,62913.0,62912.0,0.13299131]
[1728258185187,0.063583,62913.0,62912.0,0.001]
[1728258185577,0.063583,62913.0,62912.0,0.002]
[1728258185782,0.063583,62913.0,62912.0,0.122]
[1728258187483,0.063583,62913.0,62912.0,0.185584]
[1728258188893,0.0932,62916.0,62914.0,0.063581]
[1728258189093,0.03215863,62915.0,62914.0,0.063581]
[1728258189384,0.09573963,62915.0,62914.0,0.063581]
[1728258189896,0.063581,62915.0,62914.0,0.063581]
[1728258190196,0.063581,62915.0,62914.0,0.001]
[1728258190502,0.063581,62915.0,62914.0,0.121]
[1728258191086,0.063581,62915.0,62914.0,0.122]
[1728258191588,0.063581,62915.0,62914.0,0.002]
[1728258191782,0.063581,62915.0,62914.0,0.121]
[1728258191988,0.063581,62915.0,62914.0,0.122]
[1728258194688,0.063581,62915.0,62914.0,0.185582]
[1728258199099,0.09584341,62915.0,62914.0,0.185582]
[1728258200003,0.09584341,62915.0,62914.0,0.002]
[1728258200494,0.09584341,62915.0,62914.0,0.122]
[1728258203993,0.09584341,62915.0,62914.0,0.185582]
[1728258206501,0.03226241,62915.0,62914.0,0.185582]
[1728258206904,0.0037,62921.0,62920.0,0.063575]
[1728258207206,0.5037,62924.0,62923.0,0.063572]
[1728258207207,0.5008,62924.0,62923.0,0.063572]
[1728258207395,0.5008,62924.0,62923.0,0.183572]
[1728258207396,0.5,62924.0,62923.0,0.183572]
[1728258208507,0.5,62924.0,62923.0,0.184572]
[1728258209306,0.5,62924.0,62923.0,0.185572]
[1728258210607,0.5,62924.0,62923.0,0.19750387]
[1728258211200,0.5,62924.0,62923.0,0.07750387]
[1728258211404,0.5,62924.0,62923.0,0.19750387]
[1728258212510,0.5,62924.0,62923.0,0.25750387]
[1728258213097,0.5,62924.0,62923.0,0.07750387]
[1728258213304,0.5,62924.0,62923.0,0.25750387]
[1728258216517,0.5,62924.0,62923.0,0.19393187]
[1728258216718,0.563571,62924.0,62923.0,0.01393187]
[1728258217106,0.563571,62924.0,62923.0,0.002]
[1728258219016,0.563571,62924.0,62923.0,0.01347358]
[1728258226121,0.563571,62924.0,62923.0,0.07704558]
[1728258226523,0.5,62924.0,62923.0,0.07704558]
[1728258229626,0.5,62924.0,62923.0,1.18570558]
[1728258232433,0.5,62924.0,62923.0,1.30570558]
[1728258234821,0.5,62924.0,62923.0,1.66650558]
[1728258235025,0.0008,62937.0,62931.0,0.063564]
[1728258235228,0.0008,62937.0,62936.0,0.063559]
[1728258235632,0.063546,62949.0,62944.0,0.06355]
[1728258235839,0.03379852,62948.0,62944.0,0.3608]
[1728258236022,0.063546,62949.0,62948.0,0.12]
[1728258236223,0.09734319,62949.0,62948.0,0.12]
[1728258236432,0.03379581,62949.0,62946.0,0.18]
[1728258236633,0.063547,62948.0,62946.0,0.18]
[1728258236929,0.063547,62948.0,62944.0,0.424351]
[1728258236930,0.063548,62947.0,62944.0,0.424351]
[1728258237237,0.0931,62953.0,62944.0,0.424351]
[1728258237535,0.063545,62950.0,62947.0,0.18]
[1728258237724,0.0931,62953.0,62947.0,0.18]
[1728258237923,0.063547,62949.0,62947.0,0.18]
[1728258238130,0.063547,62949.0,62947.0,0.243548]
[1728258238933,0.063547,62949.0,62947.0,0.244548]
[1728258239834,0.063547,62949.0,62947.0,0.181]
[1728258240027,0.063547,62949.0,62948.0,0.063547]
[1728258240224,0.063544,62951.0,62949.0,0.063545]
[1728258240726,0.063545,62950.0,62949.0,0.063545]
[1728258241836,0.063545,62950.0,62949.0,0.064545]
[1728258242928,0.063543,62952.0,62951.0,0.063543]
[1728258244425,0.043543,62952.0,62951.0,0.064543]
[1728258245333,0.043543,62952.0,62951.0,0.065543]
[1728258245537,0.07724165,62952.0,62951.0,0.065543]
[1728258246439,0.043543,62952.0,62951.0,0.065543]
[1728258246642,0.07722189,62952.0,62951.0,0.065543]
[1728258247042,0.07722228,62952.0,62951.0,0.065543]
[1728258249135,0.07726273,62952.0,62951.0,0.065543]
[1728258251433,0.043543,62952.0,62951.0,0.065543]
[1728258256630,0.043543,62952.0,62947.0,0.01158646]
[1728258256631,0.063547,62948.0,62947.0,0.01158646]
[1728258256830,0.063547,62948.0,62944.0,0.063551]
[1728258256831,0.12,62949.0,62944.0,0.063551]
[1728258257049,0.06355,62945.0,62944.0,0.063551]
[1728258258345,0.06355,62945.0,62944.0,0.064551]
[1728258258543,0.0931,62953.0,62944.0,0.001]
[1728258258845,0.063545,62951.0,62948.0,0.12]
[1728258259143,0.063545,62951.0,62950.0,0.063545]
[1728258259347,0.09727112,62951.0,62950.0,0.063545]
[1728258259843,0.13648564,62951.0,62950.0,0.063545]
[1728258260951,0.13848564,62951.0,62950.0,0.063545]
[1728258261647,0.13948564,62951.0,62950.0,0.065545]
[1728258262133,0.10027112,62951.0,62950.0,0.065545]
[1728258263848,0.10045763,62951.0,62950.0,0.065545]
[1728258264447,0.066545,62951.0,62950.0,0.065545]
[1728258264640,0.18860582,62951.0,62950.0,0.065545]
[1728258267852,0.18860582,62951.0,62950.0,0.07744029]
[1728258271253,0.13984496,62951.0,62950.0,0.07744029]
[1728258272147,0.13784496,62951.0,62950.0,0.07644029]
[1728258272347,0.13884496,62951.0,62950.0,0.07744029]
[1728258273753,0.13944465,62951.0,62950.0,0.07744029]
[1728258274858,0.07589965,62951.0,62950.0,0.07744029]
[1728258279251,0.13944365,62951.0,62950.0,0.07744029]
[1728258283452,0.07589965,62951.0,62950.0,0.07744029]
[1728258283662,0.07589657,62951.0,62950.0,0.07744029]
[1728258283957,0.0361948,62951.0,62950.0,0.07744029]
[1728258284348,0.07611012,62951.0,62950.0,0.07744029]
[1728258288656,0.07606487,62951.0,62950.0,0.07744029]
[1728258288857,0.25960887,62951.0,62950.0,0.01389529]
[1728258289363,0.13960887,62951.0,62950.0,0.01389529]
[1728258290263,0.13960887,62951.0,62950.0,0.13389529]
[1728258290773,0.09981668,62951.0,62950.0,0.13389529]
[1728258293967,0.09981668,62951.0,62950.0,0.01389529]
[1728258294472,0.1394519,62951.0,62950.0,0.01389529]
[1728258294659,0.13954238,62951.0,62950.0,0.01389529]
[1728258296765,0.09981668,62951.0,62950.0,0.01389529]
[1728258298567,0.09969044,62951.0,62950.0,0.01389529]
[1728258299355,0.13934098,62951.0,62950.0,0.01389529]
[1728258300467,0.13934098,62951.0,62950.0,0.07744029]
[1728258300468,0.09969044,62951.0,62950.0,0.07744029]
[1728258301765,0.09975978,62951.0,62950.0,0.07744029]
[1728258306677,0.09975426,62951.0,62950.0,0.07744029]
[1728258307060,0.21975426,62951.0,62950.0,0.01389529]
[1728258307263,0.28333127,62951.0,62950.0,0.01389529]
[1728258307768,0.32296605,62951.0,62950.0,0.002]
[1728258307972,1.39952605,62951.0,62950.0,0.002]
[1728258308167,1.39952605,62951.0,62943.0,0.0037]
[1728258308168,0.063551,62944.0,62943.0,0.0037]
[1728258308361,0.063551,62944.0,62941.0,0.063554]
[1728258308362,0.063553,62942.0,62941.0,0.063554]
[1728258308679,0.09774027,62942.0,62941.0,0.063554]
[1728258309272,0.09749808,62942.0,62941.0,0.063554]
[1728258309468,0.09749808,62942.0,62941.0,0.07518367]
[1728258310280,0.09849808,62942.0,62941.0,0.07618367]
[1728258310675,0.10049808,62942.0,62941.0,0.07718367]
[1728258310870,0.10049808,62942.0,62941.0,0.01362967]
[1728258311075,0.50063616,62942.0,62941.0,0.002]
[1728258311370,0.063558,62937.0,62936.0,0.00608314]
[1728258311577,0.21750308,62937.0,62936.0,0.00238314]
[1728258311769,0.25684116,62937.0,62936.0,0.00238314]
[1728258312573,0.25984116,62937.0,62936.0,0.00338314]
[1728258313370,0.22050308,62937.0,62936.0,0.00338314]
[1728258313766,0.22050308,62937.0,62926.0,0.30592208]
[1728258313767,0.12784693,62933.0,62919.0,0.3608]
[1728258313972,0.063572,62923.0,62922.0,0.0118376]
[1728258314170,0.063572,62923.0,62919.0,0.424376]
[1728258314171,0.063575,62920.0,62919.0,0.3608]
[1728258315472,0.18,62925.0,62919.0,0.37231482]
[1728258315683,0.063572,62924.0,62920.0,0.063575]
[1728258315979,0.063567,62929.0,62924.0,0.063571]
[1728258316177,0.09664796,62928.0,62924.0,0.063571]
[1728258316384,0.063568,62928.0,62924.0,0.063571]
[1728258316680,0.063569,62927.0,62924.0,0.063571]
[1728258316979,0.06357,62925.0,62924.0,0.063571]
[1728258317772,0.54172,62929.0,62924.0,0.003]
[1728258317976,0.06357,62925.0,62924.0,0.003]
[1728258318281,0.06357,62925.0,62921.0,0.063574]
[1728258318481,0.06357,62925.0,62924.0,0.003]
[1728258318682,0.24457,62925.0,62924.0,0.003]
[1728258319587,0.24357,62925.0,62924.0,0.003]
[1728258319884,0.24357,62925.0,62921.0,0.002]
[1728258320190,0.243573,62922.0,62921.0,0.002]
[1728258320671,0.604373,62922.0,62921.0,0.002]
[1728258321074,0.063574,62921.0,62913.0,0.3608]
[1728258321376,0.063582,62915.0,62913.0,0.424383]
[1728258321577,0.425213,62922.0,62914.0,0.18]
[1728258321578,0.0008,62922.0,62914.0,0.18]
[1728258321780,0.3608,62936.0,62921.0,0.18]
[1728258321781,0.0977,62932.0,62921.0,0.18]
[1728258322081,0.063575,62921.0,62919.0,0.063576]
[1728258322483,0.063575,62920.0,62919.0,0.063576]
[1728258323079,0.063575,62920.0,62913.0,0.01172865]
[1728258323080,0.18,62920.0,62913.0,0.01172865]
[1728258323280,0.063581,62916.0,62915.0,0.063581]
[1728258324487,0.063581,62915.0,62913.0,0.014]
[1728258324788,0.063581,62915.0,62912.0,0.063583]
[1728258325180,0.063574,62922.0,62912.0,0.063583]
[1728258325687,0.06458,62916.0,62915.0,0.008]
[1728258327289,0.063583,62913.0,62912.0,0.03668422]
[1728258327492,0.243583,62913.0,62912.0,0.02268422]
[1728258327880,0.604383,62913.0,62912.0,0.011]
[1728258328086,0.063588,62908.0,62907.0,0.00238407]
[1728258328390,0.243588,62908.0,62907.0,0.00238407]
[1728258330085,0.243588,62908.0,62907.0,0.00838407]
[1728258330685,0.243588,62908.0,62907.0,0.00438407]
[1728258330992,0.244588,62908.0,62907.0,0.00438407]
[1728258331389,0.254588,62908.0,62907.0,0.00338407]
[1728258331684,0.258588,62908.0,62907.0,0.00438407]
[1728258333695,0.247588,62908.0,62907.0,0.00338407]
[1728258333896,0.261588,62908.0,62907.0,0.00438407]
[1728258335289,1.338468,62908.0,62907.0,0.00438407]
[1728258336603,1.338468,62908.0,62907.0,0.002]
[1728258337503,1.338468,62908.0,62899.0,0.0037]
[1728258337705,0.063598,62898.0,62897.0,0.063598]
[1728258338603,0.243598,62898.0,62897.0,0.063598]
[1728258339100,0.181,62898.0,62893.0,0.07486601]
[1728258339298,0.0636,62896.0,62893.0,0.07486601]
[1728258339886,0.0636,62896.0,62895.0,0.063601]
[1728258341200,0.0666,62896.0,62895.0,0.064601]
[1728258341593,0.003,62896.0,62895.0,0.064601]
[1728258357416,0.003,62896.0,62895.0,0.244601]
[1728258359719,0.003,62896.0,62895.0,0.29191941]
[1728258359904,0.003,62896.0,62895.0,0.244601]
[1728258360407,0.003,62896.0,62895.0,0.29191941]
[1728258360605,0.003,62896.0,62895.0,0.244601]
[1728258361122,0.003,62896.0,62895.0,0.605401]
[1728258361818,0.003,62896.0,62895.0,0.425401]
[1728258362408,0.003,62896.0,62895.0,0.605401]
[1728258364012,0.003,62896.0,62895.0,0.244601]
[1728258368428,0.003,62896.0,62895.0,0.184601]
[1728258371819,0.003,62896.0,62895.0,0.064601]
[1728258372932,0.0666,62896.0,62895.0,0.064601]
[1728258373128,0.1637,62896.0,62895.0,0.064601]
[1728258373621,0.19596195,62896.0,62895.0,0.064601]
[1728258374532,0.19596195,62896.0,62895.0,0.001]
[1728258375933,0.1637,62896.0,62895.0,0.001]
[1728258376132,0.19597001,62896.0,62895.0,0.001]
[1728258376322,0.1637,62896.0,62895.0,0.001]
[1728258376517,0.3437,62896.0,62895.0,0.001]
[1728258379733,0.3437,62896.0,62895.0,0.064601]
[1728258381927,0.3759401,62896.0,62895.0,0.064601]
[1728258382631,0.37593927,62896.0,62895.0,0.064601]
[1728258383836,0.37593927,62896.0,62895.0,0.001]
[1728258384043,0.063607,62889.0,62887.0,0.063609]
[1728258384343,0.243607,62889.0,62887.0,0.063609]
[1728258385231,0.063608,62888.0,62887.0,0.00937334]
[1728258385437,0.18,62889.0,62882.0,0.3608]
[1728258385737,0.063604,62893.0,62882.0,0.37025797]
[1728258385738,0.18,62883.0,62882.0,0.37025797]
[1728258386040,0.243613,62883.0,62882.0,0.37025797]
[1728258386238,0.243613,62883.0,62882.0,0.00945797]
[1728258386239,0.339213,62883.0,62882.0,0.00945797]
[1728258386438,0.2756,62883.0,62878.0,0.0037]
[1728258386640,0.063618,62878.0,62874.0,0.063621]
[1728258387244,0.063619,62877.0,62874.0,0.063621]
[1728258387543,0.06362,62876.0,62874.0,0.063621]
[1728258388239,0.06362,62876.0,62874.0,0.074621]
[1728258389243,0.06362,62876.0,62874.0,0.079621]
[1728258389842,0.3618,62877.0,62874.0,0.016]
[1728258390039,0.243621,62875.0,62874.0,0.016]
[1728258390651,0.063621,62875.0,62874.0,0.016]
[1728258391948,0.063621,62875.0,62874.0,0.011]
[1728258392242,0.063621,62875.0,62874.0,0.018]
[1728258392945,0.243621,62875.0,62874.0,0.018]
[1728258393334,0.243621,62875.0,62874.0,0.011]
[1728258393535,0.244621,62875.0,62874.0,0.018]
[1728258400657,0.25415053,62875.0,62869.0,0.0037]
[1728258400858,0.063628,62868.0,62867.0,0.00956057]
[1728258401056,0.063629,62867.0,62866.0,0.00238578]
[1728258401650,0.0956,62869.0,62868.0,0.063628]
[1728258401854,0.096127,62869.0,62868.0,0.063628]
[1728258402049,0.063627,62869.0,62868.0,0.063628]
[1728258402451,0.0361,62876.0,62868.0,0.18]
[1728258402659,0.063624,62873.0,62872.0,0.063624]
[1728258403960,0.064624,62873.0,62872.0,0.074624]
[1728258404157,0.065624,62873.0,62872.0,0.074624]
[1728258407766,0.065624,62873.0,62872.0,0.08405015]
[1728258410364,0.065624,62873.0,62872.0,0.02042615]
[1728258412970,0.065624,62873.0,62872.0,0.08405015]
[1728258416268,0.09697914,62873.0,62872.0,0.08405015]
[1728258418275,0.065624,62873.0,62872.0,0.08405015]
[1728258418771,0.09709662,62873.0,62872.0,0.08405015]
[1728258419066,0.065624,62873.0,62872.0,0.08405015]
[1728258420169,0.002,62873.0,62872.0,0.08405015]
[1728258420376,0.002,62873.0,62872.0,0.56121015]
[1728258423480,0.0111,62883.0,62882.0,0.063614]
[1728258423783,0.3608,62886.0,62885.0,0.063611]
[1728258423970,0.3608,62886.0,62885.0,0.183611]
[1728258424669,0.063607,62890.0,62885.0,0.243611]
[1728258424880,0.063607,62890.0,62888.0,0.063608]
[1728258426076,0.06361,62886.0,62884.0,0.063612]
[1728258427385,0.06861,62886.0,62884.0,0.063612]
[1728258428079,0.06961,62886.0,62884.0,0.063612]
[1728258428880,0.006,62886.0,62885.0,0.243611]
[1728258429573,0.00238579,62891.0,62890.0,0.063606]
[1728258429782,0.00238579,62891.0,62890.0,0.243606]
[1728258429967,0.0111,62897.0,62896.0,0.0636]
[1728258430172,0.063595,62901.0,62896.0,0.0636]
[1728258430483,0.063598,62898.0,62896.0,0.0636]
[1728258431777,0.070598,62898.0,62896.0,0.0646]
[1728258432676,0.080598,62898.0,62896.0,0.0656]
[1728258432984,0.017,62898.0,62897.0,0.063599]
[1728258434286,0.018,62898.0,62897.0,0.064599]
[1728258435487,0.017,62898.0,62897.0,0.064599]
[1728258435687,0.018,62898.0,62897.0,0.065599]
[1728258436390,0.018,62898.0,62897.0,0.07513096]
[1728258436686,0.014,62898.0,62897.0,0.07513096]
[1728258437188,0.007,62898.0,62897.0,0.07413096]
[1728258437385,0.016,62898.0,62897.0,0.07513096]
[1728258437987,0.015,62898.0,62897.0,0.07513096]
[1728258440387,0.078598,62898.0,62897.0,0.07513096]
[1728258443984,0.078598,62898.0,62897.0,0.01153196]
[1728258444183,0.063606,62891.0,62890.0,0.063606]
[1728258444392,1.155558,62898.0,62882.0,0.3608]
[1728258444393,0.06361,62887.0,62886.0,0.06361]
[1728258444788,0.2439,62890.0,62882.0,0.37019024]
[1728258445090,0.06361,62886.0,62885.0,0.063611]
[1728258445287,0.0304,62889.0,62882.0,0.37019024]
[1728258445489,0.18,62886.0,62883.0,0.063613]
[1728258445788,0.18,62886.0,62882.0,0.37019024]
[1728258445984,0.063613,62883.0,62882.0,0.37019024]
[1728258446185,0.063613,62883.0,62882.0,0.37919024]
[1728258447090,0.063613,62883.0,62882.0,0.01839024]
[1728258447686,0.063613,62883.0,62882.0,0.00939024]
[1728258447888,0.063613,62883.0,62881.0,0.063615]
[1728258448399,0.065613,62883.0,62882.0,0.001]
[1728258448988,0.065613,62883.0,62881.0,0.07512937]
[1728258449193,0.064613,62883.0,62881.0,0.07512937]
[1728258450087,0.065613,62883.0,62881.0,0.07512937]
[1728258450880,0.065613,62883.0,62881.0,0.01151437]
[1728258451082,0.065613,62883.0,62882.0,0.063614]
[1728258451284,0.002,62883.0,62882.0,0.064614]
[1728258451892,0.002,62883.0,62882.0,0.063614]
[1728258452081,0.001,62883.0,62882.0,0.063614]
[1728258452589,0.001,62883.0,62882.0,0.184614]
[1728258452985,0.06361,62886.0,62883.0,0.063612]
[1728258455487,0.063612,62884.0,62883.0,0.063612]
[1728258458389,0.066612,62884.0,62883.0,0.063612]
[1728258472105,0.09909138,62884.0,62883.0,0.063612]
[1728258472509,0.003,62884.0,62883.0,0.063612]
[1728258474603,0.066612,62884.0,62883.0,0.063612]
[1728258474910,0.09924012,62884.0,62883.0,0.063612]
[1728258480916,0.063614,62882.0,62881.0,0.00951437]
[1728258481212,0.063615,62881.0,62880.0,0.063616]
[1728258481518,0.09624575,62881.0,62880.0,0.063616]
[1728258483618,0.03263075,62881.0,62880.0,0.063616]
[1728258484124,0.063612,62884.0,62881.0,0.063615]
[1728258484425,0.03263912,62883.0,62882.0,0.063614]
[1728258486022,0.063612,62884.0,62882.0,0.063614]
[1728258486322,0.064612,62884.0,62882.0,0.064614]
[1728258487131,0.065612,62884.0,62882.0,0.064614]
[1728258487423,0.065612,62884.0,62882.0,0.001]
[1728258487622,0.065612,62884.0,62883.0,0.063613]
[1728258489329,0.002,62884.0,62883.0,0.063613]
[1728258489722,0.0074,62892.0,62890.0,0.063606]
[1728258489917,0.0636,62896.0,62893.0,0.063602]
[1728258490122,0.063596,62900.0,62896.0,0.063599]
[1728258490319,0.063596,62900.0,62895.0,0.12]
[1728258490832,0.063596,62900.0,62898.0,0.063598]
[1728258491133,0.063597,62899.0,62898.0,0.063598]
[1728258491518,0.134,62900.0,62896.0,0.001]
[1728258491734,0.183599,62897.0,62896.0,0.001]
[1728258492828,0.183599,62897.0,62896.0,0.0636]
[1728258493333,0.197599,62897.0,62896.0,0.0646]
[1728258494325,1.21096,62897.0,62891.0,0.0037]
[1728258494528,0.063608,62888.0,62887.0,0.067309]
[1728258494835,0.12,62888.0,62883.0,0.37204778]
[1728258495030,0.183612,62884.0,62883.0,0.43196078]
[1728258497735,0.186612,62884.0,62883.0,0.43196078]
[1728258498332,0.186612,62884.0,62883.0,0.07116078]
[1728258500736,0.123,62884.0,62883.0,0.07116078]
[1728258502736,0.15553835,62884.0,62883.0,0.07116078]
[1728258503428,0.15556798,62884.0,62883.0,0.07116078]
[1728258504333,0.03556798,62884.0,62883.0,0.07116078]
[1728258506329,0.03556798,62884.0,62883.0,0.19116078]
[1728258506834,0.003,62884.0,62883.0,0.19116078]
[1728258511734,0.003,62884.0,62883.0,0.55196078]
[1728258515935,0.0037,62892.0,62883.0,1.62904078]
[1728258516238,0.0111,62896.0,62895.0,0.063601]
[1728258516441,0.12,62901.0,62895.0,0.12]
[1728258516642,0.12,62901.0,62900.0,0.063596]
[1728258516839,0.03302796,62901.0,62900.0,0.063596]
[1728258519066,0.04702796,62901.0,62900.0,0.064596]